bitfinex/quotes_ETHUSD_20241122
["timestamp","ask_amount","ask_price","bid_price","bid_amount"]
[1732298322796,0.20734394,3293.7,3292.6,0.55]
[1732298324108,0.20734394,3293.7,3293.1,3.0]
[1732298324706,0.20734394,3293.7,3292.6,0.55]
[1732298325042,0.20734394,3293.7,3293.1,3.0]
[1732298325899,0.20734394,3293.7,3293.2,0.3025]
[1732298326637,0.7935,3293.6,3293.2,0.3025]
[1732298327018,0.7935,3293.6,3292.7,0.3025]
[1732298327202,0.7935,3293.6,3292.9,0.3025]
[1732298327407,0.03795812,3293.5,3293.1,3.0]
[1732298328642,0.7935,3293.6,3292.9,0.3025]
[1732298328805,0.7935,3293.6,3293.1,3.0]
[1732298329402,0.7935,3293.6,3292.7,0.3025]
[1732298329602,0.83145994,3293.6,3293.1,3.0]
[1732298329838,0.7935,3293.6,3293.1,3.0]
[1732298330238,0.7935,3293.6,3292.9,0.3025]
[1732298330440,0.7935,3293.6,3293.1,3.0]
[1732298330839,0.7935,3293.6,3292.7,0.3025]
[1732298331157,0.7935,3293.6,3293.1,3.0]
[1732298331646,3.4396695,3294.2,3293.1,3.0]
[1732298331956,0.7658,3293.9,3293.5,0.55]
[1732298332448,0.7658,3293.9,3293.4,3.3025]
[1732298332650,0.7658,3293.9,3293.5,0.55]
[1732298332852,2.83095943,3294.5,3293.5,0.55]
[1732298333037,1.03750079,3294.4,3293.7,0.3025]
[1732298333213,0.7582,3294.4,3293.8,0.8525]
[1732298333744,0.7582,3294.4,3293.8,0.9225]
[1732298334051,0.7582,3294.4,3293.8,3.9225]
[1732298334554,0.7582,3294.4,3293.8,0.9225]
[1732298334907,0.7582,3294.4,3293.8,3.9225]
[1732298335106,0.7582,3294.4,3293.8,0.9225]
[1732298335319,0.7582,3294.4,3293.8,3.9225]
[1732298336434,0.7582,3294.4,3293.8,0.9225]
[1732298336824,0.7582,3294.4,3293.8,0.8525]
[1732298337027,0.7582,3294.4,3293.8,3.8525]
[1732298337208,0.7582,3294.4,3293.8,0.8525]
[1732298337609,0.7582,3294.4,3293.8,3.8525]
[1732298337832,0.7582,3294.4,3293.8,4.32083]
[1732298338054,0.7582,3294.4,3293.8,1.32083]
[1732298338749,2.79300793,3295.1,3293.8,1.7428918]
[1732298338750,0.7738,3294.7,3293.8,1.7428918]
[1732298341050,0.8321,3294.4,3294.0,3.0]
[1732298341251,0.03794636,3294.3,3294.0,3.3025]
[1732298341456,0.8321,3294.4,3294.0,3.3025]
[1732298341627,0.03794637,3294.3,3294.0,0.3025]
[1732298342538,0.0379467,3294.3,3294.0,0.3025]
[1732298343055,1.19461079,3294.4,3294.0,0.3025]
[1732298343264,3.03475,3295.2,3293.1,0.4220618]
[1732298343265,0.7827,3295.2,3294.5,0.3025]
[1732298343435,0.7827,3295.2,3294.2,0.55]
[1732298343436,0.7827,3295.2,3294.7,0.3025]
[1732298343815,0.55,3296.1,3295.1,0.3025]
[1732298343816,0.7827,3295.9,3295.1,0.3025]
[1732298344024,0.7827,3295.9,3295.3,0.3025]
[1732298344752,0.03793041,3295.8,3295.3,0.3025]
[1732298345230,2.83093834,3295.8,3295.3,0.3025]
[1732298345422,1.13156383,3295.7,3295.0,0.3025]
[1732298345620,0.7702,3295.4,3295.0,0.3025]
[1732298345863,2.79300793,3295.2,3295.0,0.3025]
[1732298346022,1.08744118,3295.1,3294.3,0.3025]
[1732298346224,0.7702,3294.8,3293.8,0.7619]
[1732298346559,0.03794451,3294.7,3293.9,0.3025]
[1732298346760,0.80814619,3294.8,3293.9,0.3025]
[1732298346932,1.20706609,3294.8,3293.9,0.3025]
[1732298347133,1.20706609,3294.8,3293.7,0.3025]
[1732298347823,1.20706609,3294.8,3294.2,3.0]
[1732298348255,3.56320793,3294.6,3293.9,0.3025]
[1732298348465,0.03794644,3294.5,3293.9,0.3025]
[1732298348943,0.7702,3294.4,3293.9,0.3025]
[1732298349147,0.0379481,3294.3,3293.9,0.3025]
[1732298349357,0.7702,3294.4,3293.9,0.3025]
[1732298349527,0.03794802,3294.3,3293.9,3.3025]
[1732298349874,0.03794802,3294.3,3293.3,0.3025]
[1732298350071,0.03794802,3294.3,3293.5,0.3025]
[1732298350224,0.03794802,3294.3,3293.7,0.3025]
[1732298350825,0.03794802,3294.3,3293.3,0.55]
[1732298351128,0.03794802,3294.3,3293.3,0.72339618]
[1732298351552,0.03794802,3294.3,3293.3,1.14545798]
[1732298352165,0.03794802,3294.3,3293.7,0.07]
[1732298353527,0.7702,3294.4,3293.8,0.55]
[1732298353727,0.7702,3294.4,3294.0,0.07]
[1732298354536,0.03794733,3294.3,3294.0,0.07]
[1732298355550,0.7702,3294.4,3294.0,0.07]
[1732298357351,0.8086,3294.7,3294.1,0.55]
[1732298357826,0.03794445,3294.6,3294.1,0.55]
[1732298359145,0.03794445,3294.6,3294.0,0.07]
[1732298360541,0.7523,3294.5,3294.0,0.07]
[1732298360757,2.79300793,3294.1,3294.0,0.07]
[1732298361090,6.61899095,3294.1,3294.0,0.07]
[1732298361241,0.7523,3293.2,3292.0,0.8221]
[1732298361658,0.7523,3293.2,3292.1,0.3025]
[1732298361945,0.00999988,3294.4,3292.1,0.3025]
[1732298361946,0.7523,3293.9,3292.3,0.3025]
[1732298362169,0.03795837,3293.8,3292.5,0.3025]
[1732298362344,0.7523,3293.7,3292.5,0.3025]
[1732298362683,0.03795837,3293.6,3292.9,0.55]
[1732298362877,0.03795837,3293.6,3292.8,0.55]
[1732298363081,3.54530793,3293.7,3292.8,1.3721]
[1732298363265,3.54530793,3293.7,3292.8,1.6746]
[1732298363589,3.89983872,3293.7,3292.8,1.6746]
[1732298363946,0.03795699,3293.6,3292.8,1.6746]
[1732298364145,0.03795699,3293.6,3290.2,2.0516621]
[1732298364146,0.03795699,3293.6,3292.6,0.3025]
[1732298364387,0.03795699,3293.6,3292.7,0.8525]
[1732298364545,0.43173656,3293.6,3292.7,0.8525]
[1732298365168,0.43173656,3293.6,3292.3,0.3025]
[1732298365169,2.79300793,3293.4,3292.3,0.3025]
[1732298365372,2.79300793,3293.4,3292.6,3.0]
[1732298365373,0.03796355,3293.3,3292.6,3.0]
[1732298365653,0.70298034,3293.3,3292.3,0.3025]
[1732298365850,0.8002,3293.2,3292.2,0.804]
[1732298366147,0.03796358,3293.1,3292.2,0.804]
[1732298366363,3.40191822,3293.1,3292.3,0.55]
[1732298366551,3.40191822,3293.1,3292.0,1.3085]
[1732298366752,0.8002,3293.0,3292.0,1.3085]
[1732298367087,0.8002,3293.0,3292.0,1.4696]
[1732298367088,0.0379636,3292.9,3292.0,1.4696]
[1732298367245,0.8002,3292.7,3291.8,0.55]
[1732298367450,2.79300793,3292.5,3291.7,0.7205603]
[1732298367646,0.8002,3292.7,3291.8,0.36263946]
[1732298367947,0.03796875,3292.6,3291.4,1.061]
[1732298368580,0.8002,3292.5,3291.4,1.061]
[1732298369091,0.8381714,3292.5,3291.9,3.0]
[1732298369299,0.8002,3292.5,3291.9,3.0]
[1732298370555,0.8002,3292.5,3291.5,0.55]
[1732298370556,0.03797139,3292.4,3291.5,0.55]
[1732298370755,0.03797139,3292.4,3292.0,3.0]
[1732298371170,0.8072,3292.1,3290.9,0.7721]
[1732298371354,0.03797505,3292.0,3290.9,0.7721]
[1732298372392,0.03797505,3292.0,3290.8,0.36263946]
[1732298372393,3.60020793,3291.9,3290.8,0.36263946]
[1732298372705,3.60020793,3291.9,3290.6,0.7721]
[1732298372851,3.60020793,3291.9,3290.7,0.35763946]
[1732298372852,0.8072,3291.9,3290.7,0.35763946]
[1732298373056,0.8072,3292.2,3290.8,0.7721]
[1732298373303,0.8072,3292.2,3291.0,0.7721]
[1732298373456,0.8072,3292.2,3291.1,0.35763946]
[1732298373660,0.8072,3292.2,3291.2,0.55]
[1732298373965,0.8072,3292.2,3291.7,0.55]
[1732298374299,2.79300793,3292.1,3291.5,3.0]
[1732298374483,3.15302872,3292.1,3291.3,0.7721]
[1732298374688,3.15302872,3292.1,3291.4,0.55]
[1732298374885,0.36002079,3292.1,3291.5,3.0]
[1732298375100,0.8072,3292.2,3291.4,0.55]
[1732298375403,0.8072,3292.2,3291.9,0.55]
[1732298375607,0.8072,3292.2,3291.4,0.55]
[1732298375762,0.8072,3292.2,3291.9,0.55]
[1732298377065,0.8072,3292.2,3291.9,3.55]
[1732298378064,0.8072,3292.2,3291.9,0.55]
[1732298378290,0.8072,3292.2,3291.9,3.55]
[1732298379995,0.8072,3292.2,3291.9,0.55]
[1732298380202,0.8072,3292.2,3291.9,3.55]
[1732298380401,0.8072,3292.2,3291.9,0.55]
[1732298380698,0.8072,3292.2,3291.9,3.55]
[1732298381112,0.8072,3292.2,3292.0,0.3025]
[1732298382591,0.8165,3292.6,3292.0,0.3025]
[1732298382912,1.09580079,3292.6,3292.1,0.55]
[1732298383113,0.03796783,3292.5,3291.4,0.35763946]
[1732298383273,3.60950793,3292.4,3291.9,3.0]
[1732298383479,0.36474758,3292.3,3291.9,3.0]
[1732298383677,0.36474758,3292.3,3291.6,0.8525]
[1732298383909,0.8165,3292.4,3291.9,3.0]
[1732298384293,3.6474775,3292.4,3291.9,3.0]
[1732298384624,3.6474775,3292.4,3291.4,0.55]
[1732298384625,0.8165,3292.4,3292.0,0.55]
[1732298384908,0.8165,3293.6,3292.7,0.55]
[1732298385121,2.79300793,3293.7,3292.7,0.55]
[1732298385122,0.8165,3293.3,3292.7,0.55]
[1732298385409,0.85446061,3293.3,3292.7,0.55]
[1732298385814,0.8165,3293.3,3293.0,0.55]
[1732298386036,0.8165,3293.3,3293.0,0.8525]
[1732298386379,0.8165,3293.3,3293.0,0.55]
[1732298387006,0.8165,3293.3,3292.9,0.8525]
[1732298387412,0.8165,3293.3,3292.9,3.8525]
[1732298387617,0.8165,3293.3,3292.9,0.8525]
[1732298388233,0.8232,3293.6,3292.9,0.8525]
[1732298388430,0.8232,3293.6,3292.6,0.7862]
[1732298388431,0.8232,3293.6,3293.2,0.55]
[1732298388729,0.8232,3293.9,3293.4,0.8525]
[1732298388934,0.8232,3293.9,3293.6,0.55]
[1732298389088,0.8232,3294.5,3293.6,0.8525]
[1732298389288,0.36162079,3294.4,3293.6,0.8525]
[1732298390134,0.03794766,3294.3,3293.6,0.8525]
[1732298390897,0.36162079,3294.4,3293.5,3.0]
[1732298391103,0.36162079,3294.4,3293.3,0.55]
[1732298391406,0.8232,3294.2,3293.6,0.55]
[1732298392116,0.8232,3294.2,3293.3,0.55]
[1732298392498,0.8232,3294.2,3293.6,0.55]
[1732298393141,0.03794999,3294.1,3293.6,0.55]
[1732298393355,0.8232,3294.2,3293.3,0.55]
[1732298393838,0.03794999,3294.1,3293.6,0.55]
[1732298394037,0.8232,3294.2,3293.6,0.55]
[1732298394944,0.8232,3294.2,3293.8,0.55]
[1732298395329,2.79300793,3294.6,3293.3,0.35924528]
[1732298395330,0.7738,3294.5,3293.6,0.55]
[1732298395511,0.7738,3294.5,3294.0,0.55]
[1732298395708,0.7738,3294.5,3293.9,3.55]
[1732298395929,0.7738,3294.5,3293.9,3.9815]
[1732298396247,0.7738,3294.5,3293.9,0.9815]
[1732298396408,0.7738,3294.5,3293.9,0.55]
[1732298396605,0.7738,3294.5,3293.9,3.55]
[1732298397062,0.03794324,3294.4,3293.9,0.55]
[1732298397213,0.81894324,3294.8,3293.9,0.55]
[1732298397415,0.03794175,3294.7,3293.9,0.55]
[1732298397651,0.03794175,3294.7,3293.9,3.55]
[1732298397824,0.39913672,3294.7,3293.9,0.55]
[1732298398027,0.39913672,3294.7,3293.9,3.55]
[1732298398730,0.76,3294.5,3293.9,3.0]
[1732298398929,0.79794475,3294.5,3294.0,0.55]
[1732298399254,0.79794475,3294.5,3293.9,3.0]
[1732298399554,0.76,3294.5,3293.9,3.0]
[1732298399848,0.76,3294.5,3294.0,0.55]
[1732298400225,0.03794284,3294.4,3294.0,0.55]
[1732298400428,0.76,3294.5,3294.0,0.55]
[1732298400797,0.8284,3295.1,3294.3,0.55]
[1732298400911,0.8284,3295.1,3294.4,0.3025]
[1732298400912,1.19054079,3295.1,3294.4,0.3025]
[1732298401340,0.0379411,3295.0,3294.4,0.3025]
[1732298401662,1.19054079,3295.1,3294.4,0.3025]
[1732298402144,0.8284,3295.1,3294.6,0.3025]
[1732298402733,0.8284,3295.1,3294.3,0.55]
[1732298402734,0.8033,3295.7,3295.0,0.3025]
[1732298403460,0.8033,3295.7,3295.2,0.3025]
[1732298403819,2.79300793,3295.5,3295.2,0.3025]
[1732298404020,0.758,3295.3,3295.2,0.3025]
[1732298404256,1.11689408,3295.3,3294.9,0.3025]
[1732298404418,0.758,3295.3,3294.9,3.3025]
[1732298404628,0.03793747,3295.2,3294.9,0.3025]
[1732298404952,0.758,3295.1,3294.9,0.3025]
[1732298405151,0.03794231,3295.0,3294.9,0.3025]
[1732298405364,0.03794231,3295.0,3294.7,0.3025]
[1732298406067,0.758,3295.1,3294.7,0.3025]
[1732298406272,1.11310079,3295.1,3294.5,0.3025]
[1732298406568,0.758,3295.1,3294.5,0.3025]
[1732298406727,0.79594278,3295.1,3294.5,0.3025]
[1732298406933,0.758,3295.1,3294.5,0.3025]
[1732298407151,0.758,3295.1,3294.7,0.3025]
[1732298407732,0.7749,3295.6,3295.0,0.3025]
[1732298407966,2.83094254,3295.5,3295.0,0.3025]
[1732298408154,0.7749,3295.1,3295.0,0.3025]
[1732298408365,1.13169079,3295.1,3295.0,0.3025]
[1732298408828,0.7996,3295.0,3294.0,0.3025]
[1732298409031,3.39161079,3295.1,3294.0,0.3025]
[1732298409032,2.79300793,3294.4,3294.0,0.3025]
[1732298409342,0.7996,3294.2,3294.0,0.3025]
[1732298409541,0.7996,3294.2,3292.9,0.71688474]
[1732298409542,0.31725033,3294.3,3293.0,0.8003]
[1732298409543,2.8309577,3294.1,3293.0,0.8003]
[1732298409759,0.7855,3294.0,3293.1,0.3025]
[1732298410271,0.03795383,3293.9,3293.1,0.3025]
[1732298410435,0.03795383,3293.9,3293.1,0.48446847]
[1732298410932,0.03795383,3293.9,3293.1,0.18196847]
[1732298411134,0.03795383,3293.9,3293.1,0.55]
[1732298411569,0.7855,3294.0,3293.1,0.55]
[1732298412472,0.7855,3294.0,3293.4,0.55]
[1732298412773,0.037951,3293.9,3293.3,3.0]
[1732298412930,0.037951,3293.9,3292.7,0.8225]
[1732298412931,0.03795387,3293.9,3292.7,0.8225]
[1732298413130,0.03795387,3293.9,3292.6,0.66174528]
[1732298413131,0.7816,3293.4,3292.6,0.3025]
[1732298413538,0.03796032,3293.3,3292.5,0.3025]
[1732298413939,0.39921715,3293.3,3292.4,0.8225]
[1732298414562,0.39921715,3293.3,3292.5,0.55]
[1732298414766,0.7816,3293.4,3292.5,0.55]
[1732298414968,0.03796034,3293.3,3292.5,0.55]
[1732298415170,0.03796034,3293.3,3292.1,0.8225]
[1732298415371,0.7816,3293.2,3292.1,0.8225]
[1732298415667,0.7816,3293.2,3292.7,3.0]
[1732298416086,0.7816,3292.7,3291.8,0.8225]
[1732298416250,0.7816,3292.7,3290.7,0.01]
[1732298416251,0.03796735,3292.6,3291.5,0.8225]
[1732298416452,0.45927215,3292.6,3291.5,0.8225]
[1732298416649,0.45927215,3292.6,3290.8,0.7775]
[1732298416650,0.8192,3292.5,3290.8,0.7775]
[1732298416850,0.03797324,3292.4,3291.2,0.35763946]
[1732298417150,0.8192,3292.5,3291.2,0.71688474]
[1732298417349,0.8192,3292.4,3291.3,0.7775]
[1732298417544,0.8192,3293.0,3291.4,0.35763946]
[1732298417747,0.03796679,3292.9,3291.4,0.71688474]
[1732298418373,0.8192,3293.0,3291.7,0.55]
[1732298418573,0.8192,3293.0,3292.4,0.55]
[1732298418736,0.8192,3293.0,3292.4,3.55]
[1732298419069,0.8192,3293.0,3292.4,0.55]
[1732298419242,0.8192,3293.0,3292.4,3.55]
[1732298419444,0.8192,3293.0,3292.4,0.55]
[1732298419651,0.8192,3293.0,3292.4,3.55]
[1732298420483,0.8192,3293.0,3292.4,0.55]
[1732298420643,0.8192,3293.0,3292.0,0.8226]
[1732298420644,0.7972,3293.3,3292.9,3.0]
[1732298421142,0.03795914,3293.9,3292.9,3.0]
[1732298421143,0.7972,3293.9,3292.9,3.0]
[1732298421452,0.7972,3293.9,3293.0,0.55]
[1732298422087,0.7972,3293.9,3292.7,0.55]
[1732298422274,0.03795294,3293.8,3293.4,3.0]
[1732298422475,0.42286336,3293.8,3293.4,3.0]
[1732298422675,0.7972,3293.9,3293.4,3.0]
[1732298422875,0.0379558,3293.8,3293.4,3.0]
[1732298423081,0.0379558,3293.8,3292.7,0.55]
[1732298423455,0.0379558,3293.8,3293.1,3.0]
[1732298423759,0.7972,3293.9,3293.2,0.55]
[1732298423977,0.03795361,3293.8,3292.6,0.8226]
[1732298424154,0.03795361,3293.8,3293.1,3.0]
[1732298424472,0.8322,3293.7,3293.1,3.0]
[1732298424683,0.8322,3293.7,3292.4,0.55]
[1732298424684,0.03795694,3293.6,3292.4,0.55]
[1732298425053,0.03795694,3293.6,3293.1,3.0]
[1732298425258,0.03795695,3293.6,3293.1,3.0]
[1732298425560,0.87015844,3293.7,3293.1,3.0]
[1732298426101,0.8322,3293.7,3293.1,3.0]
[1732298426657,0.8322,3293.7,3292.4,0.8528]
[1732298426891,0.8322,3293.7,3292.6,0.55]
[1732298428712,0.03795696,3293.6,3292.6,0.55]
[1732298429208,0.7821,3293.5,3292.4,0.3028]
[1732298429507,1.24141597,3293.4,3292.4,0.3028]
[1732298429690,1.20345376,3293.4,3292.4,0.3028]
[1732298430001,0.03796215,3293.3,3292.4,0.3028]
[1732298430161,0.03796215,3293.3,3292.0,0.3028]
[1732298430162,0.7821,3293.2,3292.0,0.3028]
[1732298430368,0.7821,3293.0,3291.7,0.66204528]
[1732298430682,3.39348067,3293.2,3291.7,0.3028]
[1732298430683,0.82006735,3292.9,3291.7,0.3028]
[1732298431202,0.82006735,3292.9,3291.5,0.3028]
[1732298432001,0.82006735,3292.9,3292.3,3.0]
[1732298432002,0.7821,3292.9,3292.3,3.0]
[1732298432987,0.7821,3292.9,3292.1,0.8528]
[1732298433493,0.7821,3292.9,3292.3,3.0]
[1732298433674,0.7821,3292.9,3292.1,0.8528]
[1732298436107,0.7821,3292.9,3292.7,0.3028]
[1732298437220,0.8114,3293.6,3292.8,0.3028]
[1732298437577,0.8114,3293.6,3293.0,0.3028]
[1732298437771,0.31598656,3295.2,3293.5,0.55]
[1732298437772,3.62561155,3294.7,3293.5,0.55]
[1732298438112,0.36635648,3294.6,3294.0,0.3028]
[1732298438411,0.825,3294.7,3294.0,0.3028]
[1732298438573,0.825,3294.7,3293.3,0.55]
[1732298438574,0.825,3294.7,3294.2,0.3028]
[1732298440008,0.8158,3294.5,3293.6,3.3028]
[1732298440309,1.24024032,3294.5,3293.8,0.3028]
[1732298440518,0.7835,3294.8,3294.2,3.3028]
[1732298440831,0.7835,3294.8,3294.2,0.3028]
[1732298441109,0.7835,3294.8,3293.9,0.55]
[1732298441110,3.3906584,3295.5,3293.9,0.55]
[1732298441317,1.12256584,3295.4,3294.4,3.0]
[1732298441481,1.12256584,3295.4,3294.5,0.55]
[1732298441807,0.7835,3295.4,3294.5,0.55]
[1732298442131,0.7835,3295.4,3294.5,3.55]
[1732298442309,0.03793468,3295.3,3294.5,3.55]
[1732298442893,0.03793468,3295.3,3294.5,0.55]
[1732298443115,0.03793468,3295.3,3294.5,3.55]
[1732298443301,0.7835,3295.4,3294.5,3.55]
[1732298443515,0.7835,3295.4,3294.5,0.55]
[1732298444030,0.7835,3295.4,3294.8,3.0]
[1732298444197,0.7835,3295.4,3294.5,0.55]
[1732298444404,0.03793743,3295.3,3294.8,3.0]
[1732298444806,0.03793743,3295.3,3294.5,0.55]
[1732298445018,0.03793743,3295.3,3294.8,3.0]
[1732298445191,0.7835,3295.4,3294.8,3.0]
[1732298445404,0.7835,3295.4,3294.9,0.55]
[1732298446435,0.7835,3295.4,3294.5,0.7555]
[1732298446618,0.7835,3295.4,3294.8,3.0]
[1732298446933,0.7835,3295.4,3294.6,0.55]
[1732298447241,0.7835,3295.4,3294.8,3.0]
[1732298447417,0.03793267,3296.1,3294.9,0.85]
[1732298447418,0.8142,3296.1,3294.9,0.85]
[1732298447591,0.8142,3296.1,3294.5,0.7555]
[1732298447592,0.8142,3296.1,3295.3,0.55]
[1732298448136,0.03792813,3296.0,3295.4,3.0]
[1732298448360,0.8142,3296.1,3295.4,3.0]
[1732298448539,0.8142,3296.1,3294.5,0.7555]
[1732298448540,0.03792813,3296.0,3294.5,0.7555]
[1732298448707,0.03792813,3296.0,3295.4,3.0]
[1732298448897,0.03792813,3296.0,3295.2,3.0]
[1732298449235,0.8142,3295.9,3295.2,3.0]
[1732298449607,0.8142,3295.9,3294.6,0.55]
[1732298449796,0.8142,3295.9,3295.2,3.0]
[1732298450106,0.8142,3295.9,3294.6,0.55]
[1732298450837,0.03793227,3295.8,3295.2,3.0]
[1732298451038,0.03793227,3295.8,3294.6,0.55]
[1732298451198,0.03793227,3295.8,3295.2,3.0]
[1732298451528,0.8142,3295.9,3294.6,0.55]
[1732298451734,0.03793228,3295.8,3295.2,3.0]
[1732298451897,0.8142,3295.9,3295.2,3.0]
[1732298452093,0.8142,3295.9,3294.6,0.55]
[1732298452293,0.03793229,3295.8,3295.2,3.0]
[1732298452522,0.7608,3295.7,3295.2,3.0]
[1732298452725,0.03793324,3295.6,3295.2,3.0]
[1732298452921,0.7608,3295.7,3294.6,0.55]
[1732298453292,0.7608,3295.7,3295.2,3.0]
[1732298453507,0.7608,3295.7,3294.6,0.55]
[1732298453746,0.7608,3295.7,3295.2,3.0]
[1732298453950,0.7608,3295.7,3294.6,0.55]
[1732298454110,0.7608,3295.7,3295.2,3.0]
[1732298454316,0.7608,3295.7,3294.6,0.55]
[1732298454515,0.7608,3295.7,3295.2,3.0]
[1732298454934,0.7608,3295.7,3294.6,0.55]
[1732298455325,0.7608,3295.7,3294.6,1.26688474]
[1732298455559,0.03793013,3296.5,3294.6,1.26688474]
[1732298455560,0.7871,3296.4,3295.4,0.55]
[1732298455913,0.7871,3296.4,3295.2,0.55]
[1732298456148,0.7871,3296.4,3295.2,0.71296]
[1732298456360,0.7871,3296.4,3295.4,0.3028]
[1732298456513,0.7871,3296.4,3295.5,0.55]
[1732298456715,0.7871,3296.4,3295.4,3.3028]
[1732298456716,0.791,3296.2,3295.4,0.3028]
[1732298456955,0.791,3296.0,3294.8,0.3028]
[1732298457166,0.791,3296.0,3294.7,0.96333847]
[1732298457167,0.03793058,3295.9,3295.4,3.0]
[1732298457344,0.03793058,3295.9,3294.9,0.8528]
[1732298457547,0.791,3296.0,3295.4,3.0]
[1732298458065,0.791,3296.0,3294.9,0.8528]
[1732298458560,0.791,3296.0,3295.4,3.0]
[1732298458862,0.791,3296.0,3295.5,0.55]
[1732298459046,0.791,3296.0,3295.4,3.0]
[1732298459259,0.791,3296.0,3295.5,0.55]
[1732298461663,0.03792738,3295.9,3294.9,0.3028]
[1732298461862,0.791,3296.0,3295.2,0.55]
[1732298462161,0.8281,3295.9,3295.1,3.0]
[1732298462467,0.03793302,3295.8,3295.0,0.3028]
[1732298462638,0.8281,3295.7,3294.5,0.3028]
[1732298463024,0.03793326,3295.6,3294.5,0.3028]
[1732298463225,0.03793326,3295.6,3294.6,0.8528]
[1732298463429,0.8281,3295.7,3294.6,0.8528]
[1732298464431,1.2306494,3295.7,3294.6,1.31931]
[1732298464857,1.2306494,3295.7,3294.6,0.8528]
[1732298465453,0.8281,3295.7,3294.6,0.8528]
[1732298466547,0.8281,3295.5,3294.6,0.8528]
[1732298467449,0.8281,3295.5,3294.6,1.21204528]
[1732298467851,0.8301,3296.4,3295.0,3.0]
[1732298468068,0.86802892,3296.4,3295.1,0.55]
[1732298468648,3.07155892,3296.4,3295.1,0.55]
[1732298468854,0.7886,3296.1,3295.1,0.55]
[1732298469048,0.7886,3295.9,3295.1,3.0]
[1732298469389,0.7886,3295.9,3295.2,0.55]
[1732298469752,0.7886,3295.9,3295.1,3.0]
[1732298469991,0.03793079,3295.8,3295.2,0.55]
[1732298470144,0.8117,3295.7,3295.0,0.55]
[1732298470480,0.8117,3295.5,3294.4,0.3028]
[1732298470689,0.7916,3295.3,3294.4,0.3028]
[1732298470986,0.03793769,3295.2,3294.4,0.3028]
[1732298471196,0.7916,3295.1,3294.1,0.3028]
[1732298472060,0.7916,3295.1,3294.4,0.55]
[1732298472880,5.82976798,3295.6,3293.4,0.34324072]
[1732298472881,0.7916,3294.9,3293.8,0.3028]
[1732298473183,0.7916,3294.9,3293.8,0.63604072]
[1732298473496,0.7916,3294.9,3293.8,3.63604072]
[1732298473669,0.7916,3294.9,3293.8,3.3028]
[1732298473873,0.03794096,3294.8,3293.9,0.71441]
[1732298474076,0.03794096,3294.8,3293.9,0.3028]
[1732298474272,0.03794096,3294.8,3294.0,0.55]
[1732298475097,0.03794096,3294.8,3293.9,3.8528]
[1732298475471,0.7594,3294.7,3293.9,3.8528]
[1732298475678,0.79734256,3294.7,3294.1,0.55]
[1732298476062,0.79734256,3294.7,3294.2,0.3028]
[1732298476794,0.7594,3294.7,3294.2,0.3028]
[1732298476994,0.7594,3294.7,3294.1,0.3028]
[1732298477196,0.7594,3294.7,3294.3,0.3028]
[1732298478295,0.7594,3294.7,3294.4,0.3028]
[1732298479164,0.71918781,3294.7,3294.3,0.3028]
[1732298481262,0.0379426,3294.6,3294.3,0.3028]
[1732298481801,3.03457,3295.4,3294.3,0.3028]
[1732298481802,2.79538798,3294.7,3294.3,0.3028]
[1732298482003,0.03794465,3294.6,3294.3,0.3028]
[1732298482308,0.8118,3294.5,3294.1,0.3028]
[1732298482467,0.03794517,3294.4,3294.1,0.3028]
[1732298482661,0.8118,3294.5,3294.1,0.3028]
[1732298482896,0.8118,3294.5,3294.1,0.68808]
[1732298483107,0.8118,3295.2,3294.5,0.3028]
[1732298483290,0.8118,3295.2,3294.9,0.3028]
[1732298484166,0.8118,3295.8,3295.1,0.3028]
[1732298484615,0.03793343,3295.7,3295.1,0.3028]
[1732298484911,0.03793343,3295.6,3295.1,0.3028]
[1732298485201,0.7875,3295.5,3295.0,0.3028]
[1732298485411,0.7875,3295.5,3295.0,0.63308]
[1732298485704,0.7875,3295.5,3295.2,0.3028]
[1732298485906,0.15738635,3296.4,3295.4,0.3028]
[1732298485907,0.788,3296.1,3295.4,0.3028]
[1732298486103,0.788,3296.1,3295.6,0.55]
[1732298486273,0.788,3296.1,3295.6,0.8528]
[1732298487198,0.788,3296.4,3295.6,0.8528]
[1732298487616,0.03792323,3296.3,3295.6,0.8528]
[1732298487817,0.82592576,3296.4,3295.6,3.8528]
[1732298487990,0.788,3296.4,3295.6,3.8528]
[1732298488194,0.788,3296.4,3295.6,4.23808]
[1732298488584,0.788,3296.4,3295.6,1.23808]
[1732298488934,0.788,3296.4,3296.1,0.3028]
[1732298489217,0.788,3296.4,3295.0,0.33324072]
[1732298489218,0.788,3296.9,3296.3,0.3028]
[1732298489784,0.788,3296.9,3296.4,0.8528]
[1732298490786,0.788,3296.9,3296.4,3.8528]
[1732298491019,0.03791761,3296.8,3295.8,0.7763]
[1732298491230,0.03791761,3296.8,3295.9,0.55]
[1732298491519,2.79538798,3296.7,3296.1,3.0]
[1732298491928,0.788,3296.9,3295.9,0.55]
[1732298492155,0.03792219,3296.8,3295.9,0.55]
[1732298492417,0.788,3296.9,3295.9,0.55]
[1732298492418,0.788,3296.9,3296.1,3.0]
[1732298492617,0.788,3296.9,3295.9,0.55]
[1732298492833,0.3583388,3296.8,3296.1,3.0]
[1732298493020,0.39626102,3296.8,3296.1,3.0]
[1732298493207,0.3583388,3296.8,3295.9,0.55]
[1732298493615,0.3583388,3296.8,3296.1,3.0]